Cogmind - Beta 10.2 @@@ ROGUE MODE // 2021.07.20 @ 20:20:29 Player: Vincent Result: Destroyed by D-53 Grenadier with Mini Grenade Launcher Performance ------------- Evolutions (0) 0 Regions Visited (2) 400 Robots Destroyed (18) 90 Value Destroyed (376) 376 Prototype IDs (0) 0 Alien Tech Used (0) 0 Bonus (0) 0 TOTAL SCORE: 866 Bonus ------- None Cogmind --------- Core Integrity 0/250 Matter 275/300 Energy 160/160 System Corruption 0% Temperature Cool (0) Movement Walking (210) Ox3 Location -10/Mines Parts ------- > --- POWER (1) -------- Light Nuclear Core > --- PROPULSION (2) --- Aluminum Leg > --- UTILITY (2) ------ High-capacity Storage Unit > --- WEAPON (2) ------- (None) > --- INVENTORY (12) --- High-capacity Storage Unit High-capacity Storage Unit Structural Scanner Visual Processing Unit Terrain Scan Processor Transport Network Coupler ECM Suite Peak State ------------ > --- POWER ------------ Light Nuclear Core > --- PROPULSION ------- Aluminum Leg Aluminum Leg > --- UTILITY ---------- High-capacity Storage Unit Terrain Scanner > --- WEAPON ----------- Medium Laser > --- INVENTORY -------- High-capacity Storage Unit High-capacity Storage Unit Structural Scanner Visual Processing Unit Terrain Scan Processor Transport Network Coupler ECM Suite Mining Laser Mining Laser [Rating: 9] Favorites ----------- Power Light Ion Engine Engine Light Ion Engine Power Core Light Nuclear Core Propulsion Aluminum Leg Leg Aluminum Leg Utility Terrain Scanner Device Terrain Scanner Storage Large Storage Unit Weapon EM Pulse Gun Energy Gun EM Pulse Gun Ballistic Gun Assault Rifle Special Weapon Mining Laser Build | -11 -10 -10 ------- Run | Scr Mat Min Slots Evolved . | . . . Power . | . . . Propulsion . | . . . Utility . | . . . Weapon . | . . . Parts Attached 26 | 7 14 5 Power 2 | 1 . 1 Engine 1 | 1 . . Core 1 | . . 1 Reactor . | . . . Propulsion 7 | 2 4 1 Treads . | . . . Leg 7 | 2 4 1 Wheel . | . . . Hover . | . . . Flight . | . . . Utility 4 | 1 3 . Device 1 | . 1 . Storage 3 | 1 2 . Processor . | . . . Hackware . | . . . Protection . | . . . Artifact . | . . . Weapon 13 | 3 7 3 Energy Gun 7 | 2 4 1 Energy Cannon . | . . . Ballistic Gun 3 | 1 2 . Ballistic Cannon . | . . . Launcher . | . . . Special Weapon 3 | . 1 2 Impact Weapon . | . . . Slashing Weapon . | . . . Piercing Weapon . | . . . Special Melee Weapon . | . . . Unidentified Prototypes . | . . . Parts Lost 12 | . 3 9 Power 1 | . . 1 Propulsion 2 | . . 2 Utility 1 | . . 1 Weapon 8 | . 3 5 Highest Loss Streak 9 | . 2 9 Average Slot Usage (%) 94 | . 96 79 Engine 13 | . 14 8 Leg 26 | . 26 22 Device 12 | . 12 11 Storage 14 | . 14 14 Energy Gun 19 | . 20 14 Ballistic Gun 5 | . 6 . Naked Turns . | . . . Heaviest Build 40 | 11 40 40 Greatest Support 20 | 20 20 20 Greatest Overweight (x) 3 | . 3 3 Average Overweight (x) . | . . 1 Largest Inventory Capacity 12 | 6 12 12 Average Capacity 9 | 5 8 12 Most Carried 12 | 4 12 12 Average Carried 7 | 3 7 10 Final Capacity 12 | 6 12 12 Final Carried 12 | 4 12 7 Class Distribution -------------------- 100% | Mutant Dominant Class ---------------- Mutant | -10/Materials Mutant | -10/Mines Resources | -11 -10 -10 ----------- Run | Scr Mat Min Matter Collected 585 | 204 381 . Remotely . | . . . Salvage Created 596 | . 596 . Parts 27 | . 27 . Haulers Intercepted 1 | . 1 . Recyclers Shooed 3 | . 3 . Parts Field Recycled . | . . . Retrieved Matter . | . . . Parts Self-Destructed . | . . . Prevented . | . . . Kills | -11 -10 -10 ------- Run | Scr Mat Min Combat Hostiles Destroyed 10 | . 10 . Guns 8 | . 8 . Cannons 1 | . 1 . AOE 1 | . 1 . Classes Destroyed 8 | . 8 . Worker 3 | . 3 . Builder 1 | . 1 . Hauler 1 | . 1 . Recycler 1 | . 1 . Operator 1 | . 1 . Watcher 1 | . 1 . Swarmer 2 | . 2 . Grunt 8 | . 8 . Best Kill Streak 4 | . 4 . Combat Bots Only 4 | . 4 . Max Kills in Single Turn 1 | . 1 . Gunslinging . | . . . Exploded 1 | . 1 . Melee . | . . . Uniques/NPCs Destroyed . | . . . Combat | -11 -10 -10 -------- Run | Scr Mat Min Damage Taken 1260 | . 600 660 Core 259 | . 81 178 Absorbed by Shields . | . . . Core Remaining (%) 100 | 100 . . Volleys Fired 66 | . 63 3 Largest 2 | . 2 2 Hottest 200 | . 120 200 Shots Fired 108 | . 103 5 Gun 100 | . 99 1 Cannon . | . . . Launcher . | . . . Special 8 | . 4 4 Kinetic 27 | . 27 . Thermal 9 | . 4 5 Explosive . | . . . Electromagnetic 72 | . 72 . Robot Hit Streak 9 | . 9 1 Robot Miss Streak 4 | . 4 1 Penetration Max . | . . . Secondary Targets 3 | . 3 . Max Gunslinging Chain 1 | . 1 . Shots Hit Robots 69 | . 67 2 Core Hits 28 | . 28 . Critical Hits . | . . . Critical Kills . | . . . Critical Parts Destroyed . | . . . Melee Attacks . | . . . Impact . | . . . Slashing . | . . . Piercing . | . . . Sneak Attacks . | . . . Combat Hostiles . | . . . Follow-up Attacks . | . . . Damage Inflicted 1232 | . 1160 72 Guns 810 | . 810 . Cannons . | . . . Explosions 254 | . 254 . Melee . | . . . Ramming . | . . . Kinetic 203 | . 203 . Thermal 422 | . 350 72 Explosive . | . . . Electromagnetic 607 | . 607 . Impact . | . . . Slashing . | . . . Piercing . | . . . Highest Corruption . | . . . Average Corruption . | . . . Corruption Purged . | . . . Overload Shots . | . . . Overflow Damage 15 | . 15 . Projectiles . | . . . Explosions 15 | . 15 . Melee . | . . . Knockbacks . | . . . Impact . | . . . Kinetic . | . . . Secondary . | . . . Self-Inflicted Damage 40 | . 40 . Shots 1 | . 1 . Rammed . | . . . Targets Rammed . | . . . Kicked . | . . . Crushed . | . . . Highest Temperature 195 | . 195 140 Average Temperature 77 | . 78 67 Received Heat Transfer 285 | . 285 . Siege Activations . | . . . Robots Corrupted . | . . . Combat Hostiles . | . . . Parts Fried 4 | . 4 . Impact Corruptions . | . . . Robots Melted . | . . . Combat Hostiles . | . . . Parts Melted . | . . . Heat Transferred 700 | . 550 150 Parts Sabotaged . | . . . Parts Stolen . | . . . Parts Stripped . | . . . Power Chain Reactions 4 | . 4 . Missiles Intercepted . | . . . Alert | -11 -10 -10 ------- Run | Scr Mat Min Peak Influence 220 | . 220 74 Initial 74 | . . 74 Average 88 | . 102 44 Maximum Alert Level 1 | . 1 . Low Security (%) 86 | 100 83 100 Level 1 13 | . 16 . Level 2 . | . . . Level 3 . | . . . Level 4 . | . . . Level 5 . | . . . High Security . | . . . Max Security . | . . . Squads Dispatched 2 | . 2 . Investigation 1 | . 1 . Extermination . | . . . Reinforcement 1 | . 1 . Assault . | . . . Garrison . | . . . Intercept . | . . . Construction Impeded . | . . . Haulers Reinforced . | . . . Stealth | -11 -10 -10 --------- Run | Scr Mat Min Distress Signals 2 | . 2 . Communications Jammed . | . . . Distress Signals . | . . . Times Spotted 25 | . 20 5 Peak Tracking Total 5 | . 5 3 Tactical Retreats 2 | . 2 . Traps | -11 -10 -10 ------- Run | Scr Mat Min Traps Triggered . | . . . Indirectly . | . . . Trap Hack Attempts . | . . . Triggered . | . . . Disarmed . | . . . Reprogrammed . | . . . Reused . | . . . Traps Extracted . | . . . Installed . | . . . Triggered 1 | . 1 . Machines | -11 -10 -10 ---------- Run | Scr Mat Min Machines Disabled 1 | . 1 . Max in Single Turn 1 | . 1 . Machines Sabotaged . | . . . Garrisons Compromised . | . . . Overloaded Fab Kills . | . . . Fab Network Shutdowns . | . . . Hacking | -11 -10 -10 --------- Run | Scr Mat Min Machines Accessed 2 | . 2 . Terminals . | . . . Fabricators . | . . . Repair Stations 1 | . 1 . Recycling Units 1 | . 1 . Scanalyzers . | . . . Garrison Access . | . . . Total Hacks 5 | . 5 . Successful 5 | . 5 . Failed . | . . . Catastrophic . | . . . Database Lockouts . | . . . Manual . | . . . Terminals . | . . . Fabricators . | . . . Repair Stations 4 | . 4 . Recycling Units 1 | . 1 . Scanalyzers . | . . . Garrison Access . | . . . Terminal Hacks . | . . . Fabricator Hacks . | . . . Repair Station Hacks 4 | . 4 . Scan Component 2 | . 2 . Repair 2 | . 2 . Recycling Unit Hacks 1 | . 1 . Report Inventory 1 | . 1 . Scanalyzer . | . . . Garrison Access Hacks . | . . . Unauthorized Hacks . | . . . Terminals . | . . . Fabricators . | . . . Repair Stations . | . . . Recycling Units . | . . . Scanalyzers . | . . . Garrison Access . | . . . Data Cores Recovered . | . . . Used . | . . . Hacking Detections . | . . . Full Trace Events . | . . . Feedback Events . | . . . Feedback Blocked . | . . . Robot Schematics Acquired . | . . . Robots Built . | . . . Matter . | . . . Time . | . . . Total Robot Build Rating . | . . . Part Schematics Acquired . | . . . Parts Built . | . . . Matter . | . . . Time . | . . . Total Part Build Rating . | . . . Parts Repaired 2 | . 2 . Time 52 | . 52 . Parts Recycled . | . . . Recycled Matter . | . . . Retrieved Matter . | . . . Retrieved Components . | . . . Parts Scanalyzed . | . . . Part Schematics Acquired . | . . . Parts Damaged . | . . . Bothacking | -11 -10 -10 ------------ Run | Scr Mat Min Used RIF Installer . | . . . Robots Hacked . | . . . Non-combat . | . . . Combat . | . . . Robot Hacks Applied . | . . . Relay Couplers Released . | . . . Robots Rewired . | . . . Allies Hacked . | . . . Hacks Repelled . | . . . Allies | -11 -10 -10 -------- Run | Scr Mat Min Total Allies . | . . . Largest Group . | . . . Highest-Rated Group . | . . . Highest-Rated Ally . | . . . Total Orders . | . . . Ally Attacks . | . . . Total Damage . | . . . Kills . | . . . Allies Corrupted . | . . . Allies Melted . | . . . Intel | -11 -10 -10 ------- Run | Scr Mat Min Robot Analysis Total . | . . . Derelict Logs Recovered . | . . . Drone Launches . | . . . Drone Recoveries . | . . . Exploration | -11 -10 -10 ------------- Run | Scr Mat Min Turns Passed 938 | 67 763 108 Spaces Moved 434 | 48 338 48 Core 11 | 9 2 . Treads . | . . . Legs 423 | 39 336 48 Wheels . | . . . Hover . | . . . Flight . | . . . Fastest Speed 50 | 50 120 150 Average Speed 139 | 106 140 165 Slowest Speed 210 | 120 200 210 Overloaded Moves . | . . . Propulsion Burnouts . | . . . Robots Hopped . | . . . Cave-ins Triggered . | . . . Exploration Rate (%) 20 | 4 45 11 Regions Visited 2 Branch Regions 1 Pre-discovered Areas . | . . . Known Exits Taken . | . . . Unknown Exits Taken 2 | 1 1 . Scrap Searched . | . . . Spaces Dug . | . . . Terrain Destroyed 12 | . 12 . Melee . | . . . Projectile . | . . . AOE 12 | . 12 . Terrain Rammed . | . . . Walls Destroyed . | . . . Machines Disabled . | . . . Actions | -11 -10 -10 --------- Run | Scr Mat Min Total 643 | 62 517 64 Wait 74 | . 66 8 Move 432 | 47 337 48 Hop . | . . . Pick Up 32 | 8 24 . Fast Attach 4 | 2 2 . Attach 15 | 4 6 5 Detach . | . . . Swap 7 | 1 6 . Drop 13 | . 13 . Fire 66 | . 63 3 Melee . | . . . Ram . | . . . Kick . | . . . Crush . | . . . Escape Stasis . | . . . Rewire . | . . . Trap . | . . . Miscellaneous . | . . . Route ------- -11/Scrapyard -10/Materials -10/Mines History --------- Turn | Location | Event 11 | -11/Scrapyard | Discovered new exit (range 16) 68 | -11/Scrapyard | Entered Materials 348 | -10/Materials | Build established: Mutant 367 | -10/Materials | Discovered new exit (range 14) 433 | -10/Materials | Repaired Aluminum Leg 461 | -10/Materials | Repaired EM Pulse Gun 831 | -10/Materials | Entered Mines 832 | -10/Mines | Assembled infested the area 888 | -10/Mines | Core integrity fell below 50% 914 | -10/Mines | Core integrity fell below 20% 939 | -10/Mines | Destroyed by D-53 Grenadier with Mini Grenade Launcher Last Messages --------------- 00880_ EM Pulse Gun destroyed. 00888_ The unstable cave ceiling collapses. 00891_ Lgt. Ion Engine destroyed. 00892_ The unstable cave ceiling collapses. 00904_ Aluminum Leg destroyed. 00908_ Med. Laser destroyed. 00915_ K-01 Serf collects debris. 00917_ The unstable cave ceiling collapses. 00917_ Terrain Scanner destroyed. 00919_ The unstable cave ceiling collapses. 00925_ K-01 Serf collects debris. 00926_ The unstable cave ceiling collapses. 00926_ Mining Laser destroyed. 00927_ The unstable cave ceiling collapses. 00928_ K-01 Serf collects debris. 00932_ The unstable cave ceiling collapses. 00932_ K-01 Serf collects debris. 00933_ The unstable cave ceiling collapses. 00937_ K-01 Serf collects debris. 00938_ The unstable cave ceiling collapses. Map ----- +----------------------------------------------------+ | ????????????????????????????????????? | | ????????????????????????????????????? | | ???????????????????#??????#?????????? | | ????????????????????????????????????? | | ????????????????????????????????????? | | ????????????????????????????????????? | | ????????????????????????????????????? | | ????????????????????????????????????? | | ???????????????????????????####?????? | | ????????????????????????#?## ##?#??? | | ?????????????????????????## #?????? | | ????????????????????????## #?????? | | ???????????????????????## ##?????? | | ???????????????? ? ????# #??????? | | ??????????????# ? ???# ##?????? | | ?????????????? % ### ##????? | | ?????????????# # # ## #????? | | ????????????? k ### ##???? | | ????????????? # # #???? | | ????????????? ## # #???? | | ?????????????? % ## #???? | | ????????????# ## ## #???? | | ?????????????? #???? | | ????????????????## # #???? | | ??????????????????# d #??#? | | ??????????????####### #@ # ##??? | | ???????????????# #??? | | ??????????# ##?# | | ??????????# " # #?? | | ???????????# #?# # ##?? | | ???????????## ???## # ##? | | ????????????## ??????### # #?? | | ?????????????#?#????????# ##? | | ????????????????????????# ##?? | | ????????????????????????# ## ###?? | | ????????????????????????#########???? | | ??????????????????????????????????#?# | | ??????????????????????????#?????????? | | ????????????????????????????????????? | | ????????????????????????????????????? | | ????????????????????????????????????? | | | | | | | | | | | | | | | | | | | +----------------------------------------------------+ Best States ------------- Heat Dissipation 25 Energy Generation 14 Energy Capacity 160 Matter Stores 300 Matter Capacity 300 Sight Range 16 Terrain Scan Range 14 Terrain Scan Density 10 Evasion (%) 50 Item Schematics ----------------- None Robot Schematics ------------------ None Fabricated ------------ Nothing Alien Tech Used ----------------- None Achievements -------------- None Challenges ------------ None Game ------ Seed ChainImprinterProjector Manual? 0 Play Time 00:19:09 Cumulative 19.7 hours Start 2021.07.20 @ 20:02:23 End 2021.07.20 @ 20:20:29 Sessions 1 Manual Loads 0 Difficulty Rogue Special Mode None Game No. 24 Rogue 24 Adventurer 0 Explorer 0 Win Type - Total 0 Types 0/0/0/0/0/0/0/0/0 Lore% 15 Gallery% 24 Achievement% 14 Wizard Run 0 Options --------- ASCII 0 Keyboard 0 Movement Mouse Keybinds 0 Fullscreen 1 Font 16/SmallcapsGlow Map View 85x51 Tactical HUD 1 Map Filters NONE Filters NONE Steam 1 RUN: aa4a00fa-ce21-43e4-bbe4-c8a6be8660aa